bitfinex/quotes_SOLUSD_20220218
["timestamp","ask_amount","ask_price","bid_price","bid_amount"]
[1645160223515,1.48976835,94.206,94.175,105.9]
[1645160223707,41.311499,94.205,94.173,5.308]
[1645160223906,41.311499,94.205,94.172,23.6891]
[1645160223907,42.80126735,94.205,94.172,23.6891]
[1645160224106,1.48976835,94.203,94.172,23.6891]
[1645160224310,42.80126735,94.205,94.172,23.6891]
[1645160224910,1.48976835,94.202,94.18,15.9253]
[1645160225108,1.48976835,94.209,94.181,105.9]
[1645160225309,1.48976835,94.209,94.181,111.207]
[1645160225713,1.48976835,94.213,94.181,111.207]
[1645160225910,56.17629094,94.213,94.181,111.207]
[1645160226110,54.68652259,94.213,94.181,111.207]
[1645160226316,54.68652259,94.213,94.19,15.924]
[1645160226610,54.68652259,94.213,94.191,105.9]
[1645160227225,1.48976835,94.214,94.191,105.9]
[1645160227430,1.48976835,94.215,94.191,105.9]
[1645160228230,1.48976835,94.216,94.191,105.9]
[1645160228627,1.48976835,94.217,94.191,105.9]
[1645160229429,1.48976835,94.218,94.19,15.924]
[1645160229633,1.48976835,94.217,94.173,5.307]
[1645160229829,1.48976835,94.217,94.172,23.6891]
[1645160229830,1.48976835,94.211,94.172,23.6891]
[1645160230031,1.48976835,94.209,94.172,23.6891]
[1645160230432,1.48976835,94.207,94.172,23.6891]
[1645160230634,1.48976835,94.206,94.173,105.9]
[1645160231636,1.48976835,94.205,94.18,15.9255]
[1645160232540,1.48976835,94.204,94.18,15.9255]
[1645160233135,1.48976835,94.203,94.18,15.9255]
[1645160233438,6.03793744,94.223,94.18,15.9255]
[1645160233439,1.48976835,94.204,94.18,15.9255]
[1645160234636,1.48976835,94.203,94.18,15.9255]
[1645160236240,1.48976835,94.202,94.18,15.9255]
[1645160237238,1.48976835,94.203,94.18,15.9255]
[1645160237840,1.48976835,94.202,94.18,15.9255]
[1645160238241,1.48976835,94.202,94.181,105.9]
[1645160238641,1.48976835,94.208,94.191,105.9]
[1645160238841,1.48976835,94.21,94.191,105.9]
[1645160239045,1.48976835,94.209,94.191,105.9]
[1645160239641,1.48976835,94.208,94.191,105.9]
[1645160240254,1.48976835,94.209,94.191,105.9]
[1645160240646,1.48976835,94.212,94.191,105.9]
[1645160240944,1.48976835,94.214,94.191,105.9]
[1645160241149,24.6157,94.238,94.191,105.9]
[1645160241150,1.48976835,94.213,94.191,105.9]
[1645160241347,1.48976835,94.214,94.191,105.9]
[1645160241746,1.48976835,94.213,94.201,105.9]
[1645160242151,1.48976835,94.214,94.201,105.9]
[1645160242451,1.48976835,94.216,94.201,105.9]
[1645160243052,1.48976835,94.215,94.201,105.9]
[1645160244250,1.48976835,94.216,94.201,105.9]
[1645160244451,1.48976835,94.217,94.201,105.9]
[1645160246755,1.48976835,94.218,94.181,5.306]
[1645160246963,45.0,94.219,94.126,22.88494079]
[1645160247156,5.297,94.235,94.083,46.9635]
[1645160247157,49.62674351,94.205,94.083,46.9635]
[1645160247355,49.62674351,94.205,94.092,5.309]
[1645160247356,1.48976835,94.196,94.092,5.309]
[1645160247560,1.48976835,94.196,94.059,23.7289]
[1645160247561,15.9339,94.19,94.084,29.54298421]
[1645160247758,1.48976835,94.168,94.084,24.23198421]
[1645160247998,1.48976835,94.156,94.062,5.311]
[1645160248156,1.48976835,94.156,94.061,5.312]
[1645160248370,1.48976835,94.149,94.06,5.313]
[1645160248560,15.9492,94.13,94.042,5.313]
[1645160248757,20.4892,94.13,94.043,105.9]
[1645160249365,20.4892,94.13,94.013,31.84995053]
[1645160249366,7.96777253,94.129,94.045,105.9]
[1645160249560,7.96777253,94.129,94.022,5.314]
[1645160249760,7.96777253,94.129,94.013,31.84995053]
[1645160249761,15.949,94.11,94.018,105.9]
[1645160249964,5.315,94.109,94.023,24.28698983]
[1645160250360,51.09583564,94.108,94.025,105.9]
[1645160250663,5.315,94.126,94.027,105.9]
[1645160250859,5.315,94.129,94.027,105.9]
[1645160251059,5.314,94.133,94.029,105.9]
[1645160251260,5.314,94.139,94.029,105.9]
[1645160251459,5.314,94.139,94.031,105.9]
[1645160251864,53.18532846,94.138,94.031,105.9]
[1645160252060,5.314,94.137,94.033,105.9]
[1645160252464,15.9472,94.12,94.033,105.9]
[1645160252901,5.314,94.119,94.035,105.9]
[1645160253163,5.314,94.119,94.037,105.9]
[1645160253395,5.314,94.119,94.039,105.9]
[1645160253763,5.314,94.119,94.041,105.9]
[1645160254168,15.9455,94.13,94.043,105.9]
[1645160254672,15.9455,94.13,94.045,105.9]
[1645160256267,5.314,94.129,94.047,105.9]
[1645160256665,5.314,94.129,94.049,105.9]
[1645160257068,5.314,94.129,94.051,105.9]
[1645160257478,15.9455,94.13,94.053,105.9]
[1645160258467,15.9455,94.13,94.053,108.01239849]
[1645160258668,5.313,94.129,94.053,105.9]
[1645160258867,15.9455,94.13,94.055,105.9]
[1645160259270,15.9455,94.13,94.057,105.9]
[1645160259968,15.9455,94.13,94.059,105.9]
[1645160260369,15.9455,94.13,94.061,105.9]
[1645160261569,15.9455,94.13,94.063,105.9]
[1645160263172,15.9455,94.13,94.064,5.313]
[1645160263370,15.9455,94.13,94.057,105.9]
[1645160263898,15.9455,94.13,94.058,5.313]
[1645160264873,15.9455,94.13,94.059,105.9]
[1645160265074,5.313,94.129,94.059,105.9]
[1645160266474,53.18532846,94.138,94.071,105.9]
[1645160267146,53.18532846,94.138,94.073,105.9]
[1645160267473,53.18532846,94.138,94.075,105.9]
[1645160267876,53.18532846,94.138,94.077,105.9]
[1645160269685,5.313,94.149,94.077,105.9]
[1645160269876,5.312,94.167,94.079,105.9]
[1645160270082,15.9401,94.17,94.081,105.9]
[1645160270280,46.3499,94.179,94.081,105.9]
[1645160270481,46.3499,94.179,94.08,15.27]
[1645160270482,46.3499,94.179,94.083,105.9]
[1645160270680,47.18538443,94.178,94.083,105.9]
[1645160270879,47.18538443,94.178,94.085,105.9]
[1645160271082,47.18538443,94.178,94.087,105.9]
[1645160271281,47.18538443,94.178,94.089,105.9]
[1645160271682,47.18538443,94.178,94.091,105.9]
[1645160272080,47.18538443,94.178,94.093,105.9]
[1645160272484,47.18538443,94.178,94.095,105.9]
[1645160272882,47.18538443,94.178,94.097,105.9]
[1645160273682,47.18538443,94.178,94.098,5.311]
[1645160273881,15.9387,94.17,94.081,5.311]
[1645160274084,7.96477253,94.177,94.064,15.9387]
[1645160274085,1.48976835,94.168,94.064,15.9387]
[1645160274283,1.48976835,94.159,94.064,15.9387]
[1645160274481,5.312,94.167,94.064,15.9387]
[1645160274482,1.48976835,94.158,94.064,15.9387]
[1645160274884,15.9435,94.14,94.065,105.9]
[1645160275083,53.67885988,94.139,94.065,105.9]
[1645160277684,53.67885988,94.139,94.067,105.9]
[1645160278087,53.67885988,94.139,94.069,105.9]
[1645160278289,53.67885988,94.139,94.071,105.9]
[1645160280797,53.67885988,94.139,94.071,111.213]
[1645160284521,53.67885988,94.139,94.071,110.713]
[1645160288627,15.9444,94.13,94.072,105.4]
[1645160291332,1.48976835,94.137,94.072,105.4]
[1645160291531,53.67885988,94.139,94.074,105.4]
[1645160291931,53.67885988,94.139,94.076,105.4]
[1645160292330,53.67885988,94.139,94.077,5.313]
[1645160293632,53.67885988,94.139,94.076,105.4]
[1645160294236,1.48976835,94.137,94.076,105.4]
[1645160294434,1.48976835,94.138,94.076,105.4]
[1645160294934,1.48976835,94.137,94.076,105.4]
[1645160295134,53.67885988,94.139,94.076,105.4]
[1645160295135,55.16862823,94.139,94.076,105.4]
[1645160295338,1.48976835,94.138,94.076,105.4]
[1645160295534,55.16862823,94.139,94.076,105.4]
[1645160295966,53.67885988,94.139,94.076,105.4]
[1645160296833,53.67885988,94.139,94.073,105.4]
[1645160297240,53.67885988,94.139,94.075,105.4]
[1645160297836,53.67885988,94.139,94.076,110.713]
[1645160298035,53.67885988,94.139,94.076,105.4]
[1645160300737,53.67885988,94.139,94.078,105.4]
[1645160301136,53.67885988,94.139,94.08,105.4]
[1645160301537,53.67885988,94.139,94.073,105.9]
[1645160301737,53.67885988,94.139,94.075,105.9]
[1645160302236,53.67885988,94.139,94.076,111.213]
[1645160302438,53.67885988,94.139,94.076,105.9]
[1645160302641,1.48976835,94.134,94.077,5.313]
[1645160303038,1.48976835,94.129,94.077,5.313]
[1645160303238,15.9435,94.13,94.076,105.9]
[1645160303439,1.48976835,94.128,94.076,105.9]
[1645160304643,1.48976835,94.129,94.076,105.9]
[1645160305040,17.43326835,94.13,94.076,105.9]
[1645160305740,15.9435,94.13,94.076,105.9]
[1645160306942,1.48976835,94.132,94.076,105.9]
[1645160307141,53.67885988,94.139,94.078,105.9]
[1645160307142,1.48976835,94.134,94.078,105.9]
[1645160307343,1.48976835,94.135,94.078,105.9]
[1645160307542,1.48976835,94.135,94.079,5.313]
[1645160307744,1.48976835,94.135,94.076,105.9]
[1645160307946,1.48976835,94.133,94.076,105.9]
[1645160308344,1.48976835,94.13,94.076,105.9]
[1645160309149,1.48976835,94.131,94.076,105.9]
[1645160309349,15.9434,94.13,94.076,105.9]
[1645160312550,15.9434,94.13,94.072,105.9]
[1645160313160,17.43316835,94.13,94.072,105.9]
[1645160314560,1.48976835,94.128,94.072,105.9]
[1645160315562,1.48976835,94.127,94.072,105.9]
[1645160315766,15.9451,94.12,94.051,5.313]
[1645160315963,15.9451,94.12,94.052,24.6289]
[1645160316364,15.9451,94.12,94.053,24.33274882]
[1645160316565,17.43486835,94.12,94.053,24.33274882]
[1645160316764,17.43486835,94.12,94.054,105.9]
[1645160317184,17.43486835,94.12,94.055,130.23274882]
[1645160317371,15.9451,94.12,94.055,130.23274882]
[1645160317572,15.9451,94.12,94.055,105.9]
[1645160318681,17.43486835,94.12,94.055,105.9]
[1645160318980,15.9451,94.12,94.055,105.9]
[1645160320981,15.9451,94.12,94.052,24.6289]
[1645160321183,15.9493,94.1,94.052,24.6289]
[1645160321383,15.9493,94.1,94.04,5.314]
[1645160321587,15.9493,94.1,94.021,31.89511668]
[1645160321588,5.315,94.099,94.021,31.89511668]
[1645160321793,1.48976835,94.095,93.991,15.7477]
[1645160321991,50.38035057,94.098,93.992,5.316]
[1645160321992,1.48976835,94.087,93.992,5.316]
[1645160322191,1.48976835,94.086,93.993,105.9]
[1645160322392,22.9038,94.085,93.995,105.9]
[1645160322588,5.316,94.084,93.995,105.9]
[1645160322788,5.316,94.084,93.997,105.9]
[1645160322986,5.316,94.084,93.999,105.9]
[1645160323391,15.9558,94.08,94.001,105.9]
[1645160323686,15.9558,94.08,94.003,105.9]
[1645160324129,15.9558,94.08,94.005,105.9]
[1645160325689,15.9558,94.08,93.999,5.316]
[1645160326089,15.9558,94.08,94.0,130.21885099]
[1645160326290,2.65377253,94.079,94.001,5.316]
[1645160326691,15.958,94.06,94.001,5.316]
[1645160326890,15.958,94.06,93.999,5.316]
[1645160327491,15.958,94.06,94.0,24.30464505]
[1645160327688,41.36084126,94.059,94.001,105.9]
[1645160331199,41.36084126,94.059,93.999,105.9]
[1645160333723,15.9574,94.05,93.991,5.317]
[1645160333900,15.9574,94.05,93.982,5.317]
[1645160334107,23.9695,94.049,93.981,5.317]
[1645160334305,23.9695,94.049,93.983,24.27721438]
[1645160334700,23.9695,94.049,93.961,24.27721438]
[1645160334701,121.8594,94.04,93.961,24.27721438]
[1645160334901,5.319,94.039,93.961,24.27721438]
[1645160335099,5.319,94.039,93.952,23.0421]
[1645160335300,2.65377253,94.039,93.952,23.0421]
[1645160335605,7.97277253,94.038,93.952,23.0421]
[1645160335839,30.3995,94.049,93.953,111.219]
[1645160335840,49.63564407,94.02,93.953,111.219]
[1645160336204,49.63564407,94.02,93.953,5.319]
[1645160336602,49.63564407,94.02,93.954,105.9]
[1645160337405,49.63564407,94.02,93.952,23.0421]
[1645160338405,65.59894407,94.02,93.952,23.0421]
[1645160339307,65.59894407,94.02,93.953,105.9]
[1645160340608,65.59894407,94.02,93.955,105.9]
[1645160341139,65.59894407,94.02,93.952,23.0421]
[1645160341909,65.59894407,94.02,93.953,105.9]
[1645160342219,65.59894407,94.02,93.952,23.0421]
[1645160342508,15.9658,94.01,93.952,23.0421]
[1645160346232,15.9658,94.01,93.946,15.5959]
[1645160346452,5.32,94.009,93.946,15.5959]
[1645160346631,15.9671,94.0,93.946,15.5959]
[1645160347233,23.8802,94.018,93.947,105.9]
[1645160347440,23.8802,94.018,93.949,105.9]
[1645160347633,23.8802,94.018,93.951,105.9]
[1645160347832,23.8802,94.018,93.949,5.32]
[1645160348037,23.8802,94.018,93.948,24.7852]
[1645160348334,23.8802,94.018,93.949,105.9]
[1645160348548,23.8802,94.018,93.951,105.9]
[1645160348935,23.8802,94.018,93.953,105.9]
[1645160349435,23.8802,94.018,93.955,105.9]
[1645160349832,23.8802,94.018,93.957,105.9]
[1645160350237,23.8802,94.018,93.959,105.9]
[1645160350637,23.8802,94.018,93.961,105.9]
[1645160353440,23.8802,94.018,93.951,5.32]
[1645160353639,15.9648,94.01,93.949,5.32]
[1645160354439,15.9648,94.01,93.95,105.9]
[1645160354841,23.8802,94.018,93.95,121.8627]
[1645160356239,15.9644,94.01,93.948,24.7852]
[1645160357940,15.9644,94.01,93.949,105.9]
[1645160358143,23.7977,94.038,93.96,15.27]
[1645160358341,23.7977,94.038,93.961,158.3766]
[1645160358541,54.69296835,94.06,93.961,158.3766]
[1645160358741,24.1031,94.059,93.962,2.65377253]
[1645160358942,24.1031,94.059,93.964,105.9]
[1645160359159,41.53988434,94.058,93.967,3.68799504]
[1645160359347,41.53988434,94.058,93.971,105.9]
[1645160359542,41.53988434,94.058,93.971,113.0]
[1645160359744,15.9579,94.05,93.981,105.9]
[1645160359948,15.9579,94.05,93.983,105.9]
[1645160361544,41.53988434,94.058,93.983,111.32]
[1645160361744,41.53988434,94.058,93.991,105.9]
[1645160362446,41.53988434,94.058,93.993,105.9]
[1645160362646,41.53988434,94.058,93.99,15.956]
[1645160362852,15.9572,94.05,93.991,5.317]
[1645160365147,15.9572,94.05,93.992,105.9]
[1645160365348,15.9572,94.05,93.994,105.9]
[1645160365548,15.9572,94.05,93.995,5.317]
[1645160365747,41.53988434,94.058,93.995,5.317]
[1645160366348,41.53988434,94.058,93.996,23.3141]
[1645160366953,41.53988434,94.058,93.997,105.9]
[1645160367160,41.53988434,94.058,94.001,105.9]
[1645160369356,41.53988434,94.058,94.011,105.9]
[1645160369759,1.48976835,94.079,94.011,105.9]
[1645160369957,1.48976835,94.088,94.013,105.9]
[1645160370155,1.48976835,94.087,94.013,105.9]
[1645160370356,1.48976835,94.089,94.013,105.9]
[1645160370557,1.48976835,94.09,94.013,105.9]
[1645160370797,48.4035264,94.079,94.021,105.9]
[1645160371959,48.4035264,94.079,94.012,23.6885]
[1645160372166,15.9538,94.07,94.012,23.6885]
[1645160375666,15.9538,94.07,94.003,105.9]
[1645160379270,70.9121264,94.079,94.005,105.9]
[1645160379271,48.4035264,94.079,94.005,105.9]
[1645160379468,48.4035264,94.079,94.007,105.9]
[1645160379867,48.4035264,94.079,94.01,15.9533]
[1645160380172,48.4035264,94.079,94.008,2.65377253]
[1645160380173,48.4035264,94.079,94.011,23.4276]
[1645160380771,15.9537,94.07,94.011,23.4276]
[1645160381069,15.9537,94.07,94.003,105.9]
[1645160384376,15.9537,94.07,94.003,80.83230367]
[1645160384574,1.49055325,94.053,93.971,10.66692747]
[1645160384777,1.49055325,94.046,93.968,2.65377253]
[1645160384974,1.49055325,94.031,93.914,23.6964]
[1645160385177,6.29055325,94.031,93.926,11.642022]
[1645160385397,1.49055325,94.02,93.927,48.78231072]
[1645160385583,1.49055325,94.008,93.927,48.78231072]
[1645160385776,40.46785497,93.994,93.927,48.78231072]
[1645160385979,5.321,93.993,93.927,48.78231072]
[1645160386176,1.49055325,93.987,93.927,48.78231072]
[1645160386406,40.27804565,93.979,93.927,48.78231072]
[1645160387783,1.49055325,93.993,93.928,105.9]
[1645160387982,1.49055325,94.0,93.928,134.0685]
[1645160388185,1.49055325,94.021,93.928,134.0685]
[1645160388381,1.49055325,94.022,93.928,134.0685]
[1645160388583,25.61905325,94.018,93.928,134.0685]
[1645160388882,62.55381634,94.01,93.928,28.1685]
[1645160389083,62.55381634,94.01,93.928,22.8475]
[1645160389485,2.65377253,94.009,93.928,22.8475]
[1645160389885,46.58721634,94.01,93.928,22.8475]
[1645160391488,15.9689,94.0,93.928,22.8475]
[1645160392304,2.65377253,93.999,93.928,22.8475]
[1645160392516,15.9716,93.98,93.928,22.8475]
[1645160392718,52.21942747,93.979,93.928,22.8475]
[1645160394513,52.21942747,93.979,93.926,0.53212824]
[1645160394713,15.9733,93.97,93.926,0.53212824]
[1645160394970,20.3033,93.97,93.926,0.53212824]
[1645160395209,24.9653,93.969,93.926,0.53212824]
[1645160395408,30.8253,93.969,93.926,0.53212824]
[1645160395610,5.322,93.968,93.926,0.53212824]
[1645160395813,24.9653,93.969,93.926,0.53212824]
[1645160399016,15.9692,94.0,93.926,0.53212824]
[1645160399215,29.5241,93.999,93.926,0.53212824]
[1645160400027,43.16679457,93.998,93.926,0.53212824]
[1645160401419,15.9662,94.01,93.926,0.53212824]
[1645160402018,15.9662,94.01,93.931,105.9]
[1645160402419,42.89134261,94.009,93.931,105.9]
[1645160402621,42.89134261,94.009,93.933,105.9]
[1645160402822,42.89134261,94.009,93.935,105.9]
[1645160403727,5.32,94.035,93.941,169.22]
[1645160403925,1.49055325,94.061,93.943,169.22]
[1645160404123,1.49055325,94.073,93.944,4.75702579]
[1645160404329,6.76555325,94.068,93.945,105.9]
[1645160404531,1.49055325,94.065,93.947,105.9]
[1645160404725,15.9604,94.05,93.963,105.9]
[1645160404924,42.08555468,94.049,93.963,105.9]
[1645160405223,42.08555468,94.049,93.965,105.9]
[1645160405426,23.7989,94.048,93.967,105.9]
[1645160405823,42.08555468,94.049,93.967,105.9]
[1645160406029,42.08555468,94.049,93.968,2.65377253]
[1645160406227,42.08555468,94.049,93.97,15.9591]
[1645160406424,15.9612,94.04,93.966,24.4143]
[1645160407670,5.317,94.039,93.962,54.82707326]
[1645160407825,50.15151168,94.019,93.962,54.82707326]
[1645160409324,15.9658,94.01,93.962,54.82707326]
[1645160410328,15.9658,94.01,93.941,23.4488]
[1645160410628,18.61957253,94.01,93.941,23.4488]
[1645160411030,15.9658,94.01,93.941,23.4488]
[1645160411230,1.49055325,94.009,93.942,50.81994202]
[1645160411435,15.9673,94.0,93.942,156.71994202]
[1645160411629,15.9673,94.0,93.942,50.81994202]
[1645160414829,15.9673,94.0,93.942,156.71994202]
[1645160415032,15.9673,94.0,93.942,50.81994202]
[1645160417133,15.9652,94.01,93.943,105.9]
[1645160417533,1.49055325,94.015,93.944,2.65377253]
[1645160417733,1.49055325,94.026,93.95,15.27]
[1645160417932,1.49055325,94.031,93.951,105.9]
[1645160418133,43.3674028,94.03,93.951,105.9]
[1645160418332,43.3674028,94.03,93.953,105.9]
[1645160418545,43.3674028,94.03,93.955,105.9]
[1645160419238,43.3674028,94.03,93.958,46.01709224]
[1645160419435,43.3674028,94.03,93.961,105.9]
[1645160419633,43.3674028,94.03,93.962,111.219]
[1645160419835,43.3674028,94.03,93.962,105.9]
[1645160420036,43.3674028,94.03,93.963,5.319]
[1645160421047,59.3289028,94.03,93.962,105.9]
[1645160421248,59.3289028,94.03,93.96,15.9607]
[1645160421548,1.49055325,94.025,93.958,46.01709224]
[1645160421944,1.49055325,94.022,93.958,46.01709224]
[1645160422545,1.49055325,94.021,93.958,46.01709224]
[1645160423350,47.43050635,94.009,93.958,46.01709224]
[1645160426462,1.49055325,94.019,93.959,105.9]
[1645160426665,1.49055325,94.031,93.959,105.9]
[1645160426863,1.49055325,94.03,93.959,105.9]
[1645160427464,1.49055325,94.036,93.961,105.9]
[1645160427762,1.49055325,94.042,93.963,105.9]
[1645160427964,1.49055325,94.041,93.963,105.9]
[1645160428166,1.49055325,94.043,93.964,2.65377253]
[1645160428365,1.49055325,94.043,93.965,105.9]
[1645160428567,1.49055325,94.046,93.981,105.9]
[1645160428766,1.49055325,94.05,94.0,15.9549]
[1645160428965,1.49055325,94.053,94.001,50.69665618]
[1645160429169,1.49055325,94.052,94.001,56.01365618]
[1645160429566,52.80532858,94.055,94.001,56.01365618]
[1645160429567,1.49055325,94.054,94.001,56.01365618]
[1645160430214,1.49055325,94.053,94.001,56.01365618]
[1645160430367,54.29588183,94.055,94.001,56.01365618]
[1645160430769,52.80532858,94.055,94.001,56.01365618]
[1645160430969,54.29588183,94.055,94.001,56.01365618]
[1645160431367,52.80532858,94.055,94.001,56.01365618]
[1645160432969,1.49055325,94.059,94.002,105.9]
[1645160433176,1.49055325,94.061,94.011,105.9]
[1645160433371,1.49055325,94.064,94.011,105.9]
[1645160433571,1.49055325,94.065,94.011,105.9]
[1645160434426,45.02585164,94.066,94.021,105.9]
[1645160434574,45.02585164,94.066,94.022,54.39148882]
[1645160434973,45.02585164,94.066,94.02,15.9527]
[1645160435177,43.53529839,94.066,94.005,24.4468]
[1645160435375,1.49055325,94.054,94.005,24.4468]
[1645160435576,43.53529839,94.066,94.005,24.4468]
[1645160435577,1.49055325,94.055,94.005,24.4468]
[1645160435773,1.49055325,94.052,94.005,24.4468]
[1645160435978,50.9265809,94.051,94.005,24.4468]
[1645160436174,1.49055325,94.05,94.004,43.52051562]
[1645160436374,1.49055325,94.046,94.004,43.52051562]
[1645160436576,15.9593,94.04,94.004,43.52051562]
[1645160437176,1.49055325,94.047,94.004,43.52051562]
[1645160437377,1.49055325,94.048,94.004,43.52051562]
[1645160437779,1.49055325,94.048,93.99,15.958]
[1645160438378,1.49055325,94.049,93.981,24.8251]
[1645160438617,50.9265809,94.051,93.981,24.8251]
[1645160438618,1.49055325,94.046,93.981,24.8251]
[1645160438780,1.49055325,94.042,93.981,24.8251]
[1645160438980,1.49055325,94.042,93.982,51.57258926]
[1645160439380,15.9591,94.04,93.982,51.57258926]
[1645160440586,15.9591,94.04,93.99,15.9581]
[1645160440983,1.49055325,94.045,93.991,105.9]
[1645160441183,15.9575,94.05,93.991,105.9]
[1645160442485,15.9575,94.05,94.001,39.15226829]
[1645160443488,1.49055325,94.049,94.001,39.15226829]
[1645160443686,15.9592,94.04,94.001,39.15226829]
[1645160444088,1.49055325,94.046,94.001,39.15226829]
[1645160444491,1.49055325,94.045,94.001,39.15226829]
[1645160445591,15.9591,94.04,94.001,39.15226829]
[1645160445789,41.06668209,94.039,94.001,39.15226829]
[1645160446192,41.06668209,94.039,93.98,15.9587]
[1645160446392,42.55723534,94.039,93.98,15.9587]
[1645160447089,42.55723534,94.039,93.991,53.37394845]
[1645160447298,41.06668209,94.039,93.991,53.37394845]
[1645160447594,1.49055325,94.04,93.991,53.37394845]
[1645160447791,1.49055325,94.044,93.992,105.9]
[1645160447991,15.9579,94.05,93.992,111.217]
[1645160449497,15.9579,94.05,94.0,15.9566]
[1645160451998,1.49055325,94.056,94.011,105.9]
[1645160452219,53.1794,94.1,94.01,15.9544]
[1645160452220,1.49055325,94.085,94.013,105.9]
[1645160452423,1.49055325,94.088,94.012,151.31007755]
[1645160452619,1.49055325,94.084,94.012,45.41007755]
[1645160453025,1.49055325,94.081,94.02,15.9494]
[1645160453222,5.315,94.106,94.02,15.9494]
[1645160453223,46.12196695,94.077,94.02,15.9494]
[1645160453427,1.49055325,94.073,94.02,15.9494]
[1645160453923,1.49055325,94.077,94.02,15.9494]
[1645160454122,1.49055325,94.077,94.021,2.65377253]
[1645160454324,1.49055325,94.077,94.03,15.9525]
[1645160454521,1.49055325,94.076,94.03,15.9525]
[1645160454948,1.49055325,94.072,94.031,48.19737216]
[1645160455622,1.49055325,94.07,94.031,48.19737216]
[1645160456321,1.49055325,94.07,94.04,15.9517]
[1645160456522,1.49055325,94.072,94.04,15.9517]
[1645160457224,50.52825407,94.071,94.04,15.9517]
[1645160457623,1.49055325,94.07,94.04,15.9517]
[1645160459024,52.01880732,94.071,94.04,15.9517]
[1645160459224,1.49055325,94.071,94.04,15.9517]
[1645160460028,1.49055325,94.081,94.04,15.9517]
[1645160460226,1.49055325,94.082,94.04,15.9517]
[1645160460436,1.49055325,94.083,94.04,15.9517]
[1645160460629,1.49055325,94.081,94.04,15.9517]
[1645160461474,1.49055325,94.082,94.04,15.9517]
[1645160461628,1.49055325,94.081,94.04,15.9517]
[1645160461829,1.49055325,94.081,94.032,128.5761]
[1645160461830,1.49055325,94.087,94.041,111.215]
[1645160462030,1.49055325,94.087,94.051,48.78042623]
[1645160462328,1.49055325,94.089,94.051,48.78042623]
[1645160463328,45.90075954,94.091,94.06,15.9476]
[1645160463529,44.41020629,94.091,94.06,15.9476]
[1645160464029,45.90075954,94.091,94.06,15.9476]
[1645160464235,44.41020629,94.091,94.06,15.9476]
[1645160466231,45.90075954,94.091,94.05,15.9496]
[1645160466436,1.49055325,94.084,94.019,5.315]
[1645160466634,1.49055325,94.074,94.004,5.315]
[1645160467031,47.76171852,94.071,94.005,54.1633006]
[1645160467232,49.25227177,94.071,94.006,5.316]
[1645160467431,1.49055325,94.07,94.006,5.316]
[1645160467831,1.20738826,94.07,94.006,5.316]
[1645160468432,15.9566,94.06,94.01,15.9561]
[1645160470938,15.9538,94.07,94.02,15.9538]
[1645160471140,15.9538,94.07,94.021,50.45443279]
[1645160472239,47.76171852,94.071,94.03,15.9529]
[1645160472439,15.9524,94.08,94.03,15.9529]
[1645160472638,15.9524,94.08,94.031,2.65377253]
[1645160473042,15.9524,94.08,94.03,15.9529]
[1645160473441,54.4730703,94.079,94.03,15.9529]
[1645160475739,15.9509,94.09,94.031,5.316]
[1645160475940,15.9509,94.09,94.04,15.95]
[1645160476744,39.50363249,94.089,94.041,46.09870151]
[1645160476943,18.9303065,94.1,94.051,105.9]
[1645160477146,15.9492,94.1,94.051,105.9]
[1645160477442,2.9811065,94.112,94.051,105.9]
[1645160477846,2.9811065,94.113,94.051,105.9]
[1645160478044,50.50394775,94.112,94.051,105.9]
[1645160478247,6.04316284,94.111,94.051,105.9]
[1645160478473,6.04316284,94.111,94.052,2.65377253]
[1645160478749,6.04316284,94.111,94.045,16.2227]